Workbook

Sheet Forside
A1: Versjonsnummer | C1: KRT-1133 | T1: =YEAR(NOW())-1 -> 2024 | U1: 1 | V1: =DATE(T1,U2+1,0) -> 2024-02-29 | Y1: 1 | AA1: =D12 -> 31.03.2025 | AB1: pr. | BA1: =C1 -> KRT-1133 | BB1: =B12 -> 20230331 | BC1: =A2 -> 293 | BD1: =G10 -> 0 | BE1: =F12 -> 2025 | BF1: =IF(G12="1.kvartal",CONCATENATE("3"),IF(G12="1.halvår",CONCATENATE("6"),IF(G12="1.-3.kvartal",CONCATENATE("9"),IF(G12="År",CONCATENATE("12"),"")))) -> 3 | BG1: 10 | BH1: Forside | BI1: =IF(G13="Konsolidert",2,IF(G13="Ikke Konsolidert",1,IF(G13="",-1))) -> -1 | BJ1: 0 | CA1: BA | CB1: 999999001 | CC1: BB | CD1: =+CB1+1 -> 999999002 | CE1: BC | CF1: =+CD1+1 -> 999999003 | CG1: BD | CH1: =+CF1+1 -> 999999004 | CI1: BE | CJ1: =+CH1+1 -> 999999005 | CK1: BF | CL1: =+CJ1+1 -> 999999006 | CM1: BG | CN1: =+CL1+1 -> 999999007 | CO1: BH | CP1: =+CN1+1 -> 999999008 | CQ1: BI | CR1: =+CP1+1 -> 999999009 | CS1: BJ | CT1: =+CR1+1 -> 999999010
A2: 293 | T2: =YEAR(NOW()) -> 2025 | U2: 2 | V2: =DAY(V1) -> 29 | Y2: 2 | AA2: =CONCATENATE(LEFT(AA1,6),CONCATENATE(RIGHT(T1,4))) -> 31.03.2024 | BA2: Skjema-ID | BB2: Gyldig Excel Mal | BC2: VersjonsNr | BD2: Orgnr | BE2: År | BF2: MND | BG2: Antall datakolonner | BH2: Arknavn | BI2: Kons./ikke kons. | BJ2: SA/IRB
U3: 3 | Y3: 3 | AA3: brukes i arkfane nfl_01 | BG3: i dokumentet
U4: 4 | Y4: 4
U5: 5 | Y5: 5
U6: 6 | Y6: 6
B7: Skjema for rapportering av forbrukslån (Lån uten sikkerhet til personkunder) | U7: 7 | Y7: 7
U8: 8 | Y8: 8
B9: FORETAKETS NAVN: | G9: ORGANISASJONS- NUMMER: | U9: 9 | Y9: 9
U10: 10 | Y10: 10
B11: EXCELMAL GYLDIG FRA: | D11: SISTE DAG I RAPPORTERINGSPERIODEN: | F11: RAPPORTERINGSÅR: | G11: RAPPORTERINGSPERIODE: | U11: 11
B12: 20230331 | D12: =IF(G12="1.kvartal",CONCATENATE("31.03.",CONCATENATE(RIGHT(F12,4))),IF(G12="1.halvår",CONCATENATE("30.06.",CONCATENATE(RIGHT(F12,4))),IF(G12="1.-3.kvartal",CONCATENATE("30.09.",CONCATENATE(RIGHT(F12,4))),IF(G12="År",CONCATENATE("31.12.",CONCATENATE(RIGHT(F12,4))))))) -> 31.03.2025 | F12: 2025 | G12: 1.kvartal | U12: 12
H13: =IF(G13="Ja",1,"") -> 

Sheet Kvartal
C1: Skjema for rapportering av forbrukslån (Lån uten sikkerhet til personkunder)
C5: =Forside!B10 -> 0
C6: Del 1: Regnskapstall forbrukslån | D6: =Forside!$G$12 &" " &Forside!F12 -> 1.kvartal 2025 | E6: =Forside!$G$12 &" " &Forside!F12-1 -> 1.kvartal 2024
D7: mill. kr | E7: mill. kr
A8: ccr_1 | B8: 1. | C8: Renteinntekter
A9: ccr_2 | B9: 2. | C9: Rentekostnader | H9: =IF(D9<0,"Post 2 skal føres med positivt fortegn",IF(E9<0,"Post 2 skal føres med positivt fortegn","")) -> 
A10: ccr_3 | B10: 3. | C10: Netto renteinntekter (1 - 2) | H10: =IF(ISBLANK(D10),"Post 3 må fylles ut",IF(ISBLANK(E10),"Post 3 må fylles ut","")) -> Post 3 må fylles ut
A11: ccr_4 | B11: 4. | C11: Tap på utlån (4.1 + 4.2)
A12: ccr_5 | B12: 4.1 | C12: Tap kredittkort
A13: ccr_6 | B13: 4.2 | C13: Tap andre forbrukslån
A14: ccr_7 | B14: 5 | C14: Resultat av ordinær drift før skatt | H14: =IF(ISBLANK(D14),"Post 5 må fylles ut",IF(ISBLANK(E14),"Post 5 må fylles ut","")) -> Post 5 må fylles ut
A16: ccr_8 | B16: 6. | C16: Gjennomsnittlig forvaltningskapital | H16: =IF(ISBLANK(D16),"Post 6 må fylles ut",IF(ISBLANK(E16),"Post 6 må fylles ut","")) -> Post 6 må fylles ut
D17: =Forside!D12 -> 31.03.2025 | E17: =CONCATENATE(LEFT(D17,6),CONCATENATE(RIGHT(E6,4))) -> 31.03.2024
D18: mill. kr | E18: mill. kr
A19: ccr_9 | B19: 7. | C19: Brutto utlån kunder (7.2 + 7.6) | F19: =D21+D25 -> 0 | G19: =E21+E25 -> 0 | H19: =IF(OR(ROUND(D19,0)<>ROUND(F19,0),ROUND(E19,0)<>ROUND(G19,0)),"Må fylles ut! Er lik 7.2+7.6","") -> 
A20: ccr_10 | B20: 7.1 | C20: Herav Norge (7.3 + 7.7) | F20: =D22+D26 -> 0 | G20: =E22+E26 -> 0 | H20: =IF(OR(ROUND(D20,0)<>ROUND(F20,0),ROUND(E20,0)<>ROUND(G20,0)),"Brutto utlån kunder avviker fra summen av postene 7.3+7.7","") -> 
A21: ccr_11 | B21: 7.2 | C21: Kredittkort | H21: =IF(AND(D21<>0,D22=""),"Må fylle ut post 7.3",IF(AND(E21<>0,E22=""),"Må fylle ut post 7.3","")) -> 
A22: ccr_12 | B22: 7.3 | C22: Herav Norge | H22: =IF(AND(D22<>0,D21=""),"Må fylles ut post 7.2",IF(AND(E22<>0,E21=""),"Må fylles ut post 7.2","")) -> 
A23: ccr_13 | B23: 7.4 | C23: Rentebærende volum kredittkort (av 7.2 )
A24: ccr_68 | B24: 7.5 | C24: Rentebærende volum kredittkort Norge (av 7.3)
A25: ccr_14 | B25: 7.6 | C25: Andre forbrukslån | H25: =IF(AND(D25<>0,D26=""),"Må fylles ut post 7.7",IF(AND(E25<>0,E26=""),"Må fylles ut post 7.7","")) -> 
A26: ccr_15 | B26: 7.7 | C26: Herav Norge | H26: =IF(AND(D26<>0,D25=""),"Må fylles ut post 7.6",IF(AND(E26<>0,E25=""),"Må fylles ut post 7.6","")) -> 
A28: ccr_16 | B28: 8. | C28: Brutto misligholdte engasjementer, 90 dager 1) (8.2 + 8.4) | F28: =D30+D32 -> 0 | G28: =E30+E32 -> 0 | H28: =IF(OR(ROUND(D28,0)<>ROUND(F28,0),ROUND(E28,0)<>ROUND(G28,0)),"Må fylles ut! Er lik 8.2+8.4",IF(AND(D28<>0,D29=""),"Må fylles ut post 8.1","")) -> 
A29: ccr_17 | B29: 8.1 | C29: Herav Norge (8.3 + 8.5) | F29: =D31+D33 -> 0 | G29: =E31+E33 -> 0 | H29: =IF(OR(ROUND(D29,0)<>ROUND(F29,0),ROUND(E29,0)<>ROUND(G29,0)),"Må fylles ut! Er lik 8.3+8.5",IF(AND(D29<>0,D28=""),"Må fylles ut post 8","")) -> 
A30: ccr_18 | B30: 8.2 | C30: Mislighold kredittkort, 90 dager | H30: =IF(AND(D30<>0,D31=""),"Må fylles ut 8.3","") -> 
A31: ccr_19 | B31: 8.3 | C31: Herav Norge | H31: =IF(AND(D31<>0,D30=""),"Må fylles ut post 8.2","") -> 
A32: ccr_20 | B32: 8.4 | C32: Mislighold andre forbrukslån, 90 dager | H32: =IF(AND(D32<>0,D33=""),"Må fylles ut post 8.5","") -> 
A33: ccr_21 | B33: 8.5 | C33: Herav Norge | H33: =IF(AND(D33<>0,D32=""),"Må fylles ut post 8.4","") -> 
A35: ccr_22 | B35: 9. | C35: Betalingslettelse med nedskrivning
A36: ccr_23 | B36: 10. | C36: Betalingslettelse uten nedskrivning
A38: ccr_24 | B38: 11. | C38: Tapsnedskrivninger steg 1 | H38: =IF(D38>0,"Skal være negativ",IF(E38>0,"Skal være negativ","")) -> 
A39: ccr_25 | B39: 12. | C39: Tapsnedskrivninger steg 2/Gruppenedskrivninger | H39: =IF(D39>0,"Skal være negativ",IF(E39>0,"Skal være negativ","")) -> 
A40: ccr_26 | B40: 13. | C40: Tapsnedskrivninger steg 3/Individuelle nedskrivninger
C41: 1) Jf. veiledningen til ORBOF-rapport 12, kapittel 17, og kapitalkravsforskriften §10-1
B43: 14. | C43: Fordeling av brutto utlån (post 7) på land: | D43: =D17 -> 31.03.2025 | E43: =E17 -> 31.03.2024
D44: mill. kr | E44: mill. kr
A45: ccr_27 | C45: Norge (= 7.1) | F45: =IF(D45<>D20,"Skal være lik 7.1","") -> 
A46: ccr_28 | C46: Sverige
A47: ccr_29 | C47: Danmark
A48: ccr_30 | C48: Finland
A49: ccr_31 | C49: Andre land
A50: ccr_32 | C50: Sum (= 7.) | F50: =IF(D50<>D19,"Skal være lik 7.","") -> 
C52: Del 2: Salg av porteføljer: | D52: =D6 -> 1.kvartal 2025 | E52: =E6 -> 1.kvartal 2024
D53: mill. kr | E53: mill. kr
A54: ccr_33 | B54: 15. | C54: Brutto utlån solgt til annet foretak | H54: =IF(D54>0,"Navn på foretak solgt til og volum spesifiseres i egen arkfane",IF(E54>0,"Navn på foretak solgt til og volum spesifiseres i egen arkfane","")) -> 
A55: ccr_34 | B55: 15.1 | C55: Herav Norge
A56: ccr_35 | B56: 15.2 | C56: Tilbakeførte tap som følge av salg, som påvirker resultatet
A57: ccr_36 | B57: 15.3 | C57: Annen resultateffekt som følge av salg av portefølje
A58: ccr_37 | B58: 15.4 | C58: Brutto mislighold per 90 dager i solgt portefølje
C59: Fordeling av post 15 på enkeltforetak fylles ut i arkfane "Fordeling av post 15"

Sheet Årlig (hidden)
C1: Skjema for rapportering av forbrukslån (Lån uten sikkerhet til personkunder)
C5: =Forside!B10 -> 0
C6: Del 1: Regnskapstall forbrukslån | D6: =Forside!$F$12 -> 2025 | E6: =Forside!$F$12-1 -> 2024
D7: mill. kr | E7: mill. kr
A8: ccr_1 | B8: 1. | C8: Renteinntekter
A9: ccr_2 | B9: 2. | C9: Rentekostnader | H9: =IF(D9 < 0,"Post 2 skal føres med positivt fortegn",IF(E9<0,"Post 2 skal føres med positivt fortegn ","")) -> 
A10: ccr_3 | B10: 3. | C10: Netto renteinntekter (1 - 2) | H10: =IF(ISBLANK(D10),"Post 3 må fylles ut",IF(ISBLANK(E10),"Post 3 må fylles ut","")) -> Post 3 må fylles ut
A11: ccr_4 | B11: 4. | C11: Tap på utlån (4.1 + 4.2)
A12: ccr_5 | B12: 4.1 | C12: Tap kredittkort
A13: ccr_6 | B13: 4.2 | C13: Tap andre forbrukslån
A14: ccr_7 | B14: 5 | C14: Resultat av ordinær drift før skatt | H14: =IF(ISBLANK(D14),"Post 5 må fylles ut",IF(ISBLANK(E14),"Post 5 må fylles ut","")) -> Post 5 må fylles ut
A16: ccr_8 | B16: 6. | C16: Gjennomsnittlig forvaltningskapital | H16: =IF(ISBLANK(D16),"Post 6 må fylles ut",IF(ISBLANK(E16),"Post 6 må fylles ut","")) -> Post 6 må fylles ut
D17: =Forside!D12 -> 31.03.2025 | E17: =CONCATENATE(LEFT(D17,6),CONCATENATE(RIGHT(E6,4))) -> 31.03.2024
D18: mill. kr | E18: mill. kr
A19: ccr_9 | B19: 7. | C19: Brutto utlån kunder (7.2 + 7.6) | F19: =D21+D25 -> 0 | G19: =E21+E25 -> 0 | H19: =IF(OR(ROUND(D19,0)<>ROUND(F19,0),ROUND(E19,0)<>ROUND(G19,0)),"Må fylles ut! Er lik 7.2+7.6","") -> 
A20: ccr_10 | B20: 7.1 | C20: Herav Norge (7.3 + 7.6) | F20: =D22+D26 -> 0 | G20: =E22+E26 -> 0 | H20: =IF(OR(ROUND(D20,0)<>ROUND(F20,0),ROUND(E20,0)<>ROUND(G20,0)),"Brutto utlån kunder avviker fra summen av postene 7.3+7.7","") -> 
A21: ccr_11 | B21: 7.2 | C21: Kredittkort | H21: =IF(AND(D21<>0,D22=""),"Må fylle ut post 7.3",IF(AND(E21<>0,E22=""),"Må fylle ut post 7.3","")) -> 
A22: ccr_12 | B22: 7.3 | C22: Herav Norge | H22: =IF(AND(D22<>0,D21=""),"Må fylles ut post 7.2",IF(AND(E22<>0,E21=""),"Må fylles ut post 7.2","")) -> 
A23: ccr_13 | B23: 7.4 | C23: Rentebærende volum kredittkort (av 7.2 )
A24: ccr_68 | B24: 7.5 | C24: Rentebærende volum kredittkort Norge (av 7.3)
A25: ccr_14 | B25: 7.6 | C25: Andre forbrukslån | G25: 55 | H25: =IF(AND(D25<>0,D26=""),"Må fylles ut post 7.7",IF(AND(E25<>0,E26=""),"Må fylles ut post 7.7","")) -> 
A26: ccr_15 | B26: 7.7 | C26: Herav Norge | H26: =IF(AND(D26<>0,D25=""),"Må fylles ut post 7.6",IF(AND(E26<>0,E25=""),"Må fylles ut post 7.6","")) -> 
A28: ccr_16 | B28: 8. | C28: Brutto misligholdte engasjementer, 90 dager 1) (8.2 + 8.4) | F28: =D30+D32 -> 0 | G28: =E30+E32 -> 0 | H28: =IF(OR(ROUND(D28,0)<>ROUND(F28,0),ROUND(E28,0)<>ROUND(G28,0)),"Må fylles ut! Er lik 8.2+8.4",IF(AND(D28<>0,D29=""),"Må fylles ut post 8.1","")) -> 
A29: ccr_17 | B29: 8.1 | C29: Herav Norge (8.3 + 8.5) | F29: =D31+D33 -> 0 | G29: =E31+E33 -> 0 | H29: =IF(OR(ROUND(D29,0)<>ROUND(F29,0),ROUND(E29,0)<>ROUND(G29,0)),"Må fylles ut! Er lik 8.3+8.5",IF(AND(D29<>0,D28=""),"Må fylles ut post 8","")) -> 
A30: ccr_18 | B30: 8.2 | C30: Mislighold kredittkort, 90 dager | H30: =IF(AND(D30<>0,D31=""),"Må fylles ut 8.3","") -> 
A31: ccr_19 | B31: 8.3 | C31: Herav Norge | H31: =IF(AND(D31<>0,D30=""),"Må fylles ut post 8.2","") -> 
A32: ccr_20 | B32: 8.4 | C32: Mislighold andre forbrukslån, 90 dager | H32: =IF(AND(D32<>0,D33=""),"Må fylles ut post 8.5","") -> 
A33: ccr_21 | B33: 8.5 | C33: Herav Norge | H33: =IF(AND(D33<>0,D32=""),"Må fylles ut post 8.4","") -> 
A35: ccr_22 | B35: 9. | C35: Betalingslettelse med nedskrivning
A36: ccr_23 | B36: 10. | C36: Betalingslettelse uten nedskrivning
A38: ccr_24 | B38: 11. | C38: Tapsnedskrivninger steg 1 | H38: =IF(D38>0,"Skal være negativ",IF(E38>0,"Skal være negativ","")) -> 
A39: ccr_25 | B39: 12. | C39: Tapsnedskrivninger steg 2/Gruppenedskrivninger | H39: =IF(D39>0,"Skal være negativ",IF(E39>0,"Skal være negativ","")) -> 
A40: ccr_26 | B40: 13. | C40: Tapsnedskrivninger steg 3/Individuelle nedskrivninger
C41: 1) Jf. veiledningen til ORBOF-rapport 12, kapittel 17, og kapitalkravsforskriften §10-1
B43: 14. | C43: Fordeling av brutto utlån (post 7) på land: | D43: =D17 -> 31.03.2025 | E43: =E17 -> 31.03.2024
D44: mill. kr | E44: mill. kr
A45: ccr_27 | C45: Norge (= 7.1) | F45: =IF(D45<>D20,"Skal være lik 7.1","") -> 
A46: ccr_28 | C46: Sverige
A47: ccr_29 | C47: Danmark
A48: ccr_30 | C48: Finland
A49: ccr_31 | C49: Andre land
A50: ccr_32 | C50: Sum (= 7.) | F50: =IF(D50<>D19,"Skal være lik 7.","") -> 
C52: Del 2: Salg av porteføljer: | D52: =D6 -> 2025 | E52: =E6 -> 2024
D53: mill. kr | E53: mill. kr
A54: ccr_33 | B54: 15. | C54: Brutto utlån solgt til annet foretak | H54: =IF(D54>0,"Navn på foretak solgt til og volum spesifiseres i egen arkfane",IF(E54>0,"Navn på foretak solgt til og volum spesifiseres i egen arkfane","")) -> 
A55: ccr_34 | B55: 15.1 | C55: Herav Norge
A56: ccr_35 | B56: 15.2 | C56: Tilbakeførte tap som følge av salg, som påvirker resultatet
A57: ccr_36 | B57: 15.3 | C57: Annen resultateffekt som følge av salg av portefølje
A58: ccr_37 | B58: 15.4 | C58: Brutto mislighold per 90 dager i solgt portefølje
C59: Fordeling av post 15 på enkeltforetak fylles ut i arkfane "Fordeling av post 15"
C61: Del 3: Tilleggsopplysninger (år):
C63: Antall lånesøknader og avslag | D63: =D52 -> 2025 | E63: =E52 -> 2024
A64: ccr_38 | B64: 16. | C64: Antall lånesøknader til behandling | F64: =D65+D66 -> 0 | G64: =E65+E66 -> 0 | H64: =IF(OR(ROUND(D64,0)<>ROUND(F64,0),ROUND(E64,0)<>ROUND(G64,0)),"Må fylles ut! Er lik 16.1+16.2","") -> 
A65: ccr_39 | B65: 16.1 | C65: Antall lånesøknader kredittkort
A66: ccr_40 | B66: 16.2 | C66: Antall lånesøknader andre forbrukslån
A67: ccr_41 | B67: 17. | C67: Antall avslåtte lånesøknader | F67: =D68+D69 -> 0 | G67: =E68+E69 -> 0 | H67: =IF(OR(ROUND(D67,0)<>ROUND(F67,0),ROUND(E67,0)<>ROUND(G67,0)),"Må fylles ut! Er lik 17.1+17.2","") -> 
A68: ccr_42 | B68: 17.1 | C68: Antall avslåtte søknader kredittkort
A69: ccr_43 | B69: 17.2 | C69: Antall avslåtte søknader andre forbrukslån
C71: Brutto utlån Norge (7.3 + 7.6) | D71: =D17 -> 31.03.2025 | E71: =E17 -> 31.03.2024
C72: Fordelt på låntakers alder | D72: mill. kr | E72: mill. kr
C73: kredittkort | D73: =SUM(D74:D78) -> 0 | E73: =SUM(E74:E78) -> 0 | F73: =IF(D73<>D79,"Summen av 18.1 til 18.5 skal være lik 18.","") ->  | G73: =IF(E73<>E79,"Summen av 18.1 til 18.5 skal være lik 18.","") -> 
A74: ccr_44 | B74: 18.1 | C74: 18-29 år
A75: ccr_45 | B75: 18.2 | C75: 30-39 år
A76: ccr_46 | B76: 18.3 | C76: 40-49 år
A77: ccr_47 | B77: 18.4 | C77: 50-59 år
A78: ccr_48 | B78: 18.5 | C78: over 60 år
A79: ccr_49 | B79: 18. | C79: Sum | F79: =IF(D79<>D22,"Sum 18. skal være lik 7.3","") ->  | G79: =IF(E79<>E22,"Sum 18. skal være lik 7.3","") -> 
C80: andre forbrukslån | D80: =SUM(D81:D85) -> 0 | E80: =SUM(E81:E85) -> 0 | F80: =IF(D80<>D86,"Summen av 18.1 til 18.5 skal være lik 18.","") ->  | G80: =IF(E80<>E86,"Summen av 18.1 til 18.5 skal være lik 18.","") -> 
A81: ccr_50 | B81: 18.1 | C81: 18-29 år
A82: ccr_51 | B82: 18.2 | C82: 30-39 år
A83: ccr_52 | B83: 18.3 | C83: 40-49 år
A84: ccr_53 | B84: 18.4 | C84: 50-59 år
A85: ccr_54 | B85: 18.5 | C85: over 60 år
A86: ccr_55 | B86: 18. | C86: Sum | F86: =IF(D86<>D26,"Sum 18. skal være lik 7.7","") ->  | G86: =IF(E86<>E26,"Sum 18. skal være lik 7.7","") -> 
F87: =IF(F86<>E22,"Sum 18. skal være lik 7.3","") ->  | G87: =IF(G86<>E26,"Sum 18. skal være lik 7.6","") -> 
C88: Misligholdte engasjementer Norge, 90 dager (8.3 + 8.5) | D88: =D17 -> 31.03.2025 | E88: =E17 -> 31.03.2024
C89: Fordelt på låntakers alder | D89: mill. kr | E89: mill. kr
C90: kredittkort | D90: =SUM(D91:D95) -> 0 | E90: =SUM(E91:E95) -> 0 | F90: =IF(D90<>D96,"Summen av 19.1 til 19.5 skal være lik 19.","") ->  | G90: =IF(E90<>E96,"Summen av 19.1 til 19.5 skal være lik 19.","") -> 
A91: ccr_56 | B91: 19.1 | C91: 18-29 år
A92: ccr_57 | B92: 19.2 | C92: 30-39 år
A93: ccr_58 | B93: 19.3 | C93: 40-49 år
A94: ccr_59 | B94: 19.4 | C94: 50-59 år
A95: ccr_60 | B95: 19.5 | C95: over 60 år
A96: ccr_61 | B96: 19. | C96: Sum | F96: =IF(D96<>D31,"Sum 18. skal være lik 8.3","") ->  | G96: =IF(E96<>E31,"Sum 18. skal være lik 8.3","") -> 
C97: andre forbrukslån | D97: =SUM(D98:D102) -> 0 | E97: =SUM(E98:E102) -> 0 | F97: =IF(D97<>D103,"Summen av 19.1 til 19.5 skal være lik 19.","") ->  | G97: =IF(E97<>E103,"Summen av 19.1 til 19.5 skal være lik 19.","") -> 
A98: ccr_62 | B98: 19.1 | C98: 18-29 år
A99: ccr_63 | B99: 19.2 | C99: 30-39 år
A100: ccr_64 | B100: 19.3 | C100: 40-49 år
A101: ccr_65 | B101: 19.4 | C101: 50-59 år
A102: ccr_66 | B102: 19.5 | C102: over 60 år
A103: ccr_67 | B103: 19. | C103: Sum | F103: =IF(D103<>D33,"Sum 19. skal være lik 8.5","") ->  | G103: =IF(E103<>E33,"Sum 19. skal være lik 8.5","") -> 

Sheet Fordeling av post 15
B2: Skjema for rapportering av forbrukslån (Lån uten sikkerhet til personkunder)
B4: Fordeling av post 15 på enkeltforetak:
B5: =Forside!B10 -> 0
B6: Organisajonsnummer Bruk LEI-kode hvis ikke org.nr. | C6: Fullstendig navn på foretak som portefølje er solgt til: | D6: =IF(Forside!G12="År",Forside!F12, Forside!G12&" "&Forside!F12) -> 1.kvartal 2025 | E6: =IF(Forside!G12="År",Forside!F12-1, Forside!G12&" "&Forside!F12-1) -> 1.kvartal 2024
D7: mill. kr | E7: mill. kr

Sheet nfl_01 (hidden)
C1: nfl_01. Regnskapstall forbrukslån
H7: Beløp (mill.kr)
H8: =Forside!AB1&" " & Forside!AA1 -> pr. 31.03.2025 | I8: =Forside!AB1& " " &Forside!AA2 -> pr. 31.03.2024
G9: Code | H9: 0010 | I9: 0020
A10: ccr_1 | B10: 1. | C10: Renteinntekter | G10: 0010 | H10: =IF(MONTH(Forside!$D$12)=12,IF(VLOOKUP(A10,Årlig!$A:$E,4,0)="","",VLOOKUP(A10,Årlig!$A:$E,4,0)),IF(VLOOKUP(A10,Kvartal!$A:$E,4,0)="","",VLOOKUP(A10,Kvartal!$A:$E,4,0))) ->  | I10: =IF(MONTH(Forside!$D$12)=12,IF(VLOOKUP(A10,Årlig!$A:$E,5,0)="","",VLOOKUP(A10,Årlig!$A:$E,5,0)),IF(VLOOKUP(A10,Kvartal!$A:$E,5,0)="","",VLOOKUP(A10,Kvartal!$A:$E,5,0))) -> 
A11: ccr_2 | B11: 2. | C11: Rentekostnader | G11: 0020 | H11: =IF(MONTH(Forside!$D$12)=12,IF(VLOOKUP(A11,Årlig!$A:$E,4,0)="","",VLOOKUP(A11,Årlig!$A:$E,4,0)),IF(VLOOKUP(A11,Kvartal!$A:$E,4,0)="","",VLOOKUP(A11,Kvartal!$A:$E,4,0))) ->  | I11: =IF(MONTH(Forside!$D$12)=12,IF(VLOOKUP(A11,Årlig!$A:$E,5,0)="","",VLOOKUP(A11,Årlig!$A:$E,5,0)),IF(VLOOKUP(A11,Kvartal!$A:$E,5,0)="","",VLOOKUP(A11,Kvartal!$A:$E,5,0))) -> 
A12: ccr_3 | B12: 3. | C12: Netto renteinntekter (Code 0010 - Code 0020) | G12: 0030 | H12: =IF(MONTH(Forside!$D$12)=12,IF(VLOOKUP(A12,Årlig!$A:$E,4,0)="","",VLOOKUP(A12,Årlig!$A:$E,4,0)),IF(VLOOKUP(A12,Kvartal!$A:$E,4,0)="","",VLOOKUP(A12,Kvartal!$A:$E,4,0))) ->  | I12: =IF(MONTH(Forside!$D$12)=12,IF(VLOOKUP(A12,Årlig!$A:$E,5,0)="","",VLOOKUP(A12,Årlig!$A:$E,5,0)),IF(VLOOKUP(A12,Kvartal!$A:$E,5,0)="","",VLOOKUP(A12,Kvartal!$A:$E,5,0))) -> 
A13: ccr_4 | B13: 4. | C13: Tap på utlån (Code 0050 + Code 0060) | G13: 0040 | H13: =IF(MONTH(Forside!$D$12)=12,IF(VLOOKUP(A13,Årlig!$A:$E,4,0)="","",VLOOKUP(A13,Årlig!$A:$E,4,0)),IF(VLOOKUP(A13,Kvartal!$A:$E,4,0)="","",VLOOKUP(A13,Kvartal!$A:$E,4,0))) ->  | I13: =IF(MONTH(Forside!$D$12)=12,IF(VLOOKUP(A13,Årlig!$A:$E,5,0)="","",VLOOKUP(A13,Årlig!$A:$E,5,0)),IF(VLOOKUP(A13,Kvartal!$A:$E,5,0)="","",VLOOKUP(A13,Kvartal!$A:$E,5,0))) -> 
A14: ccr_5 | B14: 4.1 | C14: Tap på utlån | D14: Kredittkort | G14: 0050 | H14: =IF(MONTH(Forside!$D$12)=12,IF(VLOOKUP(A14,Årlig!$A:$E,4,0)="","",VLOOKUP(A14,Årlig!$A:$E,4,0)),IF(VLOOKUP(A14,Kvartal!$A:$E,4,0)="","",VLOOKUP(A14,Kvartal!$A:$E,4,0))) ->  | I14: =IF(MONTH(Forside!$D$12)=12,IF(VLOOKUP(A14,Årlig!$A:$E,5,0)="","",VLOOKUP(A14,Årlig!$A:$E,5,0)),IF(VLOOKUP(A14,Kvartal!$A:$E,5,0)="","",VLOOKUP(A14,Kvartal!$A:$E,5,0))) -> 
A15: ccr_6 | B15: 4.2 | D15: Andre forbrukslån | G15: 0060 | H15: =IF(MONTH(Forside!$D$12)=12,IF(VLOOKUP(A15,Årlig!$A:$E,4,0)="","",VLOOKUP(A15,Årlig!$A:$E,4,0)),IF(VLOOKUP(A15,Kvartal!$A:$E,4,0)="","",VLOOKUP(A15,Kvartal!$A:$E,4,0))) ->  | I15: =IF(MONTH(Forside!$D$12)=12,IF(VLOOKUP(A15,Årlig!$A:$E,5,0)="","",VLOOKUP(A15,Årlig!$A:$E,5,0)),IF(VLOOKUP(A15,Kvartal!$A:$E,5,0)="","",VLOOKUP(A15,Kvartal!$A:$E,5,0))) -> 
A16: ccr_7 | B16: 5 | C16: Resultat av ordinær drift før skatt | G16: 0070 | H16: =IF(MONTH(Forside!$D$12)=12,IF(VLOOKUP(A16,Årlig!$A:$E,4,0)="","",VLOOKUP(A16,Årlig!$A:$E,4,0)),IF(VLOOKUP(A16,Kvartal!$A:$E,4,0)="","",VLOOKUP(A16,Kvartal!$A:$E,4,0))) ->  | I16: =IF(MONTH(Forside!$D$12)=12,IF(VLOOKUP(A16,Årlig!$A:$E,5,0)="","",VLOOKUP(A16,Årlig!$A:$E,5,0)),IF(VLOOKUP(A16,Kvartal!$A:$E,5,0)="","",VLOOKUP(A16,Kvartal!$A:$E,5,0))) -> 
A17: ccr_8 | B17: 6. | C17: Gjennomsnittlig forvaltningskapital | G17: 0080 | H17: =IF(MONTH(Forside!$D$12)=12,IF(VLOOKUP(A17,Årlig!$A:$E,4,0)="","",VLOOKUP(A17,Årlig!$A:$E,4,0)),IF(VLOOKUP(A17,Kvartal!$A:$E,4,0)="","",VLOOKUP(A17,Kvartal!$A:$E,4,0))) ->  | I17: =IF(MONTH(Forside!$D$12)=12,IF(VLOOKUP(A17,Årlig!$A:$E,5,0)="","",VLOOKUP(A17,Årlig!$A:$E,5,0)),IF(VLOOKUP(A17,Kvartal!$A:$E,5,0)="","",VLOOKUP(A17,Kvartal!$A:$E,5,0))) -> 
A18: ccr_9 | B18: 7. | C18: Brutto utlån kunder (Code 0150 + Code 0190) | G18: 0090 | H18: =IF(MONTH(Forside!$D$12)=12,IF(VLOOKUP(A18,Årlig!$A:$E,4,0)="","",VLOOKUP(A18,Årlig!$A:$E,4,0)),IF(VLOOKUP(A18,Kvartal!$A:$E,4,0)="","",VLOOKUP(A18,Kvartal!$A:$E,4,0))) ->  | I18: =IF(MONTH(Forside!$D$12)=12,IF(VLOOKUP(A18,Årlig!$A:$E,5,0)="","",VLOOKUP(A18,Årlig!$A:$E,5,0)),IF(VLOOKUP(A18,Kvartal!$A:$E,5,0)="","",VLOOKUP(A18,Kvartal!$A:$E,5,0))) -> 
A19: ccr_27 | C19: Brutto utlån kunder | D19: Landfordelt | E19: Norge | G19: 0100 | H19: =IF(MONTH(Forside!$D$12)=12,IF(VLOOKUP(A19,Årlig!$A:$E,4,0)="","",VLOOKUP(A19,Årlig!$A:$E,4,0)),IF(VLOOKUP(A19,Kvartal!$A:$E,4,0)="","",VLOOKUP(A19,Kvartal!$A:$E,4,0))) ->  | I19: =IF(MONTH(Forside!$D$12)=12,IF(VLOOKUP(A19,Årlig!$A:$E,5,0)="","",VLOOKUP(A19,Årlig!$A:$E,5,0)),IF(VLOOKUP(A19,Kvartal!$A:$E,5,0)="","",VLOOKUP(A19,Kvartal!$A:$E,5,0))) -> 
A20: ccr_28 | E20: Sverige | G20: 0110 | H20: =IF(MONTH(Forside!$D$12)=12,IF(VLOOKUP(A20,Årlig!$A:$E,4,0)="","",VLOOKUP(A20,Årlig!$A:$E,4,0)),IF(VLOOKUP(A20,Kvartal!$A:$E,4,0)="","",VLOOKUP(A20,Kvartal!$A:$E,4,0))) ->  | I20: =IF(MONTH(Forside!$D$12)=12,IF(VLOOKUP(A20,Årlig!$A:$E,5,0)="","",VLOOKUP(A20,Årlig!$A:$E,5,0)),IF(VLOOKUP(A20,Kvartal!$A:$E,5,0)="","",VLOOKUP(A20,Kvartal!$A:$E,5,0))) -> 
A21: ccr_29 | E21: Danmark | G21: 0120 | H21: =IF(MONTH(Forside!$D$12)=12,IF(VLOOKUP(A21,Årlig!$A:$E,4,0)="","",VLOOKUP(A21,Årlig!$A:$E,4,0)),IF(VLOOKUP(A21,Kvartal!$A:$E,4,0)="","",VLOOKUP(A21,Kvartal!$A:$E,4,0))) ->  | I21: =IF(MONTH(Forside!$D$12)=12,IF(VLOOKUP(A21,Årlig!$A:$E,5,0)="","",VLOOKUP(A21,Årlig!$A:$E,5,0)),IF(VLOOKUP(A21,Kvartal!$A:$E,5,0)="","",VLOOKUP(A21,Kvartal!$A:$E,5,0))) -> 
A22: ccr_30 | E22: Finland | G22: 0130 | H22: =IF(MONTH(Forside!$D$12)=12,IF(VLOOKUP(A22,Årlig!$A:$E,4,0)="","",VLOOKUP(A22,Årlig!$A:$E,4,0)),IF(VLOOKUP(A22,Kvartal!$A:$E,4,0)="","",VLOOKUP(A22,Kvartal!$A:$E,4,0))) ->  | I22: =IF(MONTH(Forside!$D$12)=12,IF(VLOOKUP(A22,Årlig!$A:$E,5,0)="","",VLOOKUP(A22,Årlig!$A:$E,5,0)),IF(VLOOKUP(A22,Kvartal!$A:$E,5,0)="","",VLOOKUP(A22,Kvartal!$A:$E,5,0))) -> 
A23: ccr_31 | E23: Andre land | G23: 0140 | H23: =IF(MONTH(Forside!$D$12)=12,IF(VLOOKUP(A23,Årlig!$A:$E,4,0)="","",VLOOKUP(A23,Årlig!$A:$E,4,0)),IF(VLOOKUP(A23,Kvartal!$A:$E,4,0)="","",VLOOKUP(A23,Kvartal!$A:$E,4,0))) ->  | I23: =IF(MONTH(Forside!$D$12)=12,IF(VLOOKUP(A23,Årlig!$A:$E,5,0)="","",VLOOKUP(A23,Årlig!$A:$E,5,0)),IF(VLOOKUP(A23,Kvartal!$A:$E,5,0)="","",VLOOKUP(A23,Kvartal!$A:$E,5,0))) -> 
A24: ccr_11 | B24: 7.2 | D24: Kredittkort | G24: 0150 | H24: =IF(MONTH(Forside!$D$12)=12,IF(VLOOKUP(A24,Årlig!$A:$E,4,0)="","",VLOOKUP(A24,Årlig!$A:$E,4,0)),IF(VLOOKUP(A24,Kvartal!$A:$E,4,0)="","",VLOOKUP(A24,Kvartal!$A:$E,4,0))) ->  | I24: =IF(MONTH(Forside!$D$12)=12,IF(VLOOKUP(A24,Årlig!$A:$E,5,0)="","",VLOOKUP(A24,Årlig!$A:$E,5,0)),IF(VLOOKUP(A24,Kvartal!$A:$E,5,0)="","",VLOOKUP(A24,Kvartal!$A:$E,5,0))) -> 
A25: ccr_12 | B25: 7.3 | D25: Kredittkort | E25: Herav Norge | G25: 0160 | H25: =IF(MONTH(Forside!$D$12)=12,IF(VLOOKUP(A25,Årlig!$A:$E,4,0)="","",VLOOKUP(A25,Årlig!$A:$E,4,0)),IF(VLOOKUP(A25,Kvartal!$A:$E,4,0)="","",VLOOKUP(A25,Kvartal!$A:$E,4,0))) ->  | I25: =IF(MONTH(Forside!$D$12)=12,IF(VLOOKUP(A25,Årlig!$A:$E,5,0)="","",VLOOKUP(A25,Årlig!$A:$E,5,0)),IF(VLOOKUP(A25,Kvartal!$A:$E,5,0)="","",VLOOKUP(A25,Kvartal!$A:$E,5,0))) -> 
A26: ccr_13 | B26: 7.4 | E26: Rentebærende volum | G26: 0170 | H26: =IF(MONTH(Forside!$D$12)=12,IF(VLOOKUP(A26,Årlig!$A:$E,4,0)="","",VLOOKUP(A26,Årlig!$A:$E,4,0)),IF(VLOOKUP(A26,Kvartal!$A:$E,4,0)="","",VLOOKUP(A26,Kvartal!$A:$E,4,0))) ->  | I26: =IF(MONTH(Forside!$D$12)=12,IF(VLOOKUP(A26,Årlig!$A:$E,5,0)="","",VLOOKUP(A26,Årlig!$A:$E,5,0)),IF(VLOOKUP(A26,Kvartal!$A:$E,5,0)="","",VLOOKUP(A26,Kvartal!$A:$E,5,0))) -> 
A27: ccr_68 | B27: 7.5 | E27: Rentebærende volum | F27: Herav Norge | G27: 0180 | H27: =IF(MONTH(Forside!$D$12)=12,IF(VLOOKUP(A27,Årlig!$A:$E,4,0)="","",VLOOKUP(A27,Årlig!$A:$E,4,0)),IF(VLOOKUP(A27,Kvartal!$A:$E,4,0)="","",VLOOKUP(A27,Kvartal!$A:$E,4,0))) ->  | I27: =IF(MONTH(Forside!$D$12)=12,IF(VLOOKUP(A27,Årlig!$A:$E,5,0)="","",VLOOKUP(A27,Årlig!$A:$E,5,0)),IF(VLOOKUP(A27,Kvartal!$A:$E,5,0)="","",VLOOKUP(A27,Kvartal!$A:$E,5,0))) -> 
A28: ccr_14 | B28: 7.6 | D28: Andre forbrukslån | G28: 0190 | H28: =IF(MONTH(Forside!$D$12)=12,IF(VLOOKUP(A28,Årlig!$A:$E,4,0)="","",VLOOKUP(A28,Årlig!$A:$E,4,0)),IF(VLOOKUP(A28,Kvartal!$A:$E,4,0)="","",VLOOKUP(A28,Kvartal!$A:$E,4,0))) ->  | I28: =IF(MONTH(Forside!$D$12)=12,IF(VLOOKUP(A28,Årlig!$A:$E,5,0)="","",VLOOKUP(A28,Årlig!$A:$E,5,0)),IF(VLOOKUP(A28,Kvartal!$A:$E,5,0)="","",VLOOKUP(A28,Kvartal!$A:$E,5,0))) -> 
A29: ccr_15 | B29: 7.7 | D29: Andre forbrukslån | E29: Herav Norge | G29: 0200 | H29: =IF(MONTH(Forside!$D$12)=12,IF(VLOOKUP(A29,Årlig!$A:$E,4,0)="","",VLOOKUP(A29,Årlig!$A:$E,4,0)),IF(VLOOKUP(A29,Kvartal!$A:$E,4,0)="","",VLOOKUP(A29,Kvartal!$A:$E,4,0))) ->  | I29: =IF(MONTH(Forside!$D$12)=12,IF(VLOOKUP(A29,Årlig!$A:$E,5,0)="","",VLOOKUP(A29,Årlig!$A:$E,5,0)),IF(VLOOKUP(A29,Kvartal!$A:$E,5,0)="","",VLOOKUP(A29,Kvartal!$A:$E,5,0))) -> 
A30: ccr_16 | B30: 8. | C30: Brutto misligholdte engasjementer, 90 dager 1) (Code 0240 + Code 0260) | G30: 0210 | H30: =IF(MONTH(Forside!$D$12)=12,IF(VLOOKUP(A30,Årlig!$A:$E,4,0)="","",VLOOKUP(A30,Årlig!$A:$E,4,0)),IF(VLOOKUP(A30,Kvartal!$A:$E,4,0)="","",VLOOKUP(A30,Kvartal!$A:$E,4,0))) ->  | I30: =IF(MONTH(Forside!$D$12)=12,IF(VLOOKUP(A30,Årlig!$A:$E,5,0)="","",VLOOKUP(A30,Årlig!$A:$E,5,0)),IF(VLOOKUP(A30,Kvartal!$A:$E,5,0)="","",VLOOKUP(A30,Kvartal!$A:$E,5,0))) -> 
A31: ccr_17 | B31: 8.1 | C31: Brutto misligholdte engasjementer, 90 dager | D31: Herav Norge (Code 0250 + Code 0270) | G31: 0220 | H31: =IF(MONTH(Forside!$D$12)=12,IF(VLOOKUP(A31,Årlig!$A:$E,4,0)="","",VLOOKUP(A31,Årlig!$A:$E,4,0)),IF(VLOOKUP(A31,Kvartal!$A:$E,4,0)="","",VLOOKUP(A31,Kvartal!$A:$E,4,0))) ->  | I31: =IF(MONTH(Forside!$D$12)=12,IF(VLOOKUP(A31,Årlig!$A:$E,5,0)="","",VLOOKUP(A31,Årlig!$A:$E,5,0)),IF(VLOOKUP(A31,Kvartal!$A:$E,5,0)="","",VLOOKUP(A31,Kvartal!$A:$E,5,0))) -> 
A32: ccr_18 | B32: 8.2 | D32: Kredittkort | G32: 0230 | H32: =IF(MONTH(Forside!$D$12)=12,IF(VLOOKUP(A32,Årlig!$A:$E,4,0)="","",VLOOKUP(A32,Årlig!$A:$E,4,0)),IF(VLOOKUP(A32,Kvartal!$A:$E,4,0)="","",VLOOKUP(A32,Kvartal!$A:$E,4,0))) ->  | I32: =IF(MONTH(Forside!$D$12)=12,IF(VLOOKUP(A32,Årlig!$A:$E,5,0)="","",VLOOKUP(A32,Årlig!$A:$E,5,0)),IF(VLOOKUP(A32,Kvartal!$A:$E,5,0)="","",VLOOKUP(A32,Kvartal!$A:$E,5,0))) -> 
A33: ccr_19 | B33: 8.3 | D33: Kredittkort | E33: Herav Norge | G33: 0240 | H33: =IF(MONTH(Forside!$D$12)=12,IF(VLOOKUP(A33,Årlig!$A:$E,4,0)="","",VLOOKUP(A33,Årlig!$A:$E,4,0)),IF(VLOOKUP(A33,Kvartal!$A:$E,4,0)="","",VLOOKUP(A33,Kvartal!$A:$E,4,0))) ->  | I33: =IF(MONTH(Forside!$D$12)=12,IF(VLOOKUP(A33,Årlig!$A:$E,5,0)="","",VLOOKUP(A33,Årlig!$A:$E,5,0)),IF(VLOOKUP(A33,Kvartal!$A:$E,5,0)="","",VLOOKUP(A33,Kvartal!$A:$E,5,0))) -> 
A34: ccr_20 | B34: 8.4 | D34: Andre forbrukslån | G34: 0250 | H34: =IF(MONTH(Forside!$D$12)=12,IF(VLOOKUP(A34,Årlig!$A:$E,4,0)="","",VLOOKUP(A34,Årlig!$A:$E,4,0)),IF(VLOOKUP(A34,Kvartal!$A:$E,4,0)="","",VLOOKUP(A34,Kvartal!$A:$E,4,0))) ->  | I34: =IF(MONTH(Forside!$D$12)=12,IF(VLOOKUP(A34,Årlig!$A:$E,5,0)="","",VLOOKUP(A34,Årlig!$A:$E,5,0)),IF(VLOOKUP(A34,Kvartal!$A:$E,5,0)="","",VLOOKUP(A34,Kvartal!$A:$E,5,0))) -> 
A35: ccr_21 | B35: 8.5 | D35: Andre forbrukslån | E35: Herav Norge | G35: 0260 | H35: =IF(MONTH(Forside!$D$12)=12,IF(VLOOKUP(A35,Årlig!$A:$E,4,0)="","",VLOOKUP(A35,Årlig!$A:$E,4,0)),IF(VLOOKUP(A35,Kvartal!$A:$E,4,0)="","",VLOOKUP(A35,Kvartal!$A:$E,4,0))) ->  | I35: =IF(MONTH(Forside!$D$12)=12,IF(VLOOKUP(A35,Årlig!$A:$E,5,0)="","",VLOOKUP(A35,Årlig!$A:$E,5,0)),IF(VLOOKUP(A35,Kvartal!$A:$E,5,0)="","",VLOOKUP(A35,Kvartal!$A:$E,5,0))) -> 
A36: ccr_22 | B36: 9. | C36: Betalingslettelse | D36: med nedskrivning | G36: 0270 | H36: =IF(MONTH(Forside!$D$12)=12,IF(VLOOKUP(A36,Årlig!$A:$E,4,0)="","",VLOOKUP(A36,Årlig!$A:$E,4,0)),IF(VLOOKUP(A36,Kvartal!$A:$E,4,0)="","",VLOOKUP(A36,Kvartal!$A:$E,4,0))) ->  | I36: =IF(MONTH(Forside!$D$12)=12,IF(VLOOKUP(A36,Årlig!$A:$E,5,0)="","",VLOOKUP(A36,Årlig!$A:$E,5,0)),IF(VLOOKUP(A36,Kvartal!$A:$E,5,0)="","",VLOOKUP(A36,Kvartal!$A:$E,5,0))) -> 
A37: ccr_23 | B37: 10. | D37: uten nedskrivning | G37: 0280 | H37: =IF(MONTH(Forside!$D$12)=12,IF(VLOOKUP(A37,Årlig!$A:$E,4,0)="","",VLOOKUP(A37,Årlig!$A:$E,4,0)),IF(VLOOKUP(A37,Kvartal!$A:$E,4,0)="","",VLOOKUP(A37,Kvartal!$A:$E,4,0))) ->  | I37: =IF(MONTH(Forside!$D$12)=12,IF(VLOOKUP(A37,Årlig!$A:$E,5,0)="","",VLOOKUP(A37,Årlig!$A:$E,5,0)),IF(VLOOKUP(A37,Kvartal!$A:$E,5,0)="","",VLOOKUP(A37,Kvartal!$A:$E,5,0))) -> 
A38: ccr_24 | B38: 11. | C38: Tapsnedskrivninger | D38: Steg 1 | G38: 0290 | H38: =IF(MONTH(Forside!$D$12)=12,IF(VLOOKUP(A38,Årlig!$A:$E,4,0)="","",VLOOKUP(A38,Årlig!$A:$E,4,0)),IF(VLOOKUP(A38,Kvartal!$A:$E,4,0)="","",VLOOKUP(A38,Kvartal!$A:$E,4,0))) ->  | I38: =IF(MONTH(Forside!$D$12)=12,IF(VLOOKUP(A38,Årlig!$A:$E,5,0)="","",VLOOKUP(A38,Årlig!$A:$E,5,0)),IF(VLOOKUP(A38,Kvartal!$A:$E,5,0)="","",VLOOKUP(A38,Kvartal!$A:$E,5,0))) -> 
A39: ccr_25 | B39: 12. | D39: Steg 2 - Gruppenedskrivninger | G39: 0300 | H39: =IF(MONTH(Forside!$D$12)=12,IF(VLOOKUP(A39,Årlig!$A:$E,4,0)="","",VLOOKUP(A39,Årlig!$A:$E,4,0)),IF(VLOOKUP(A39,Kvartal!$A:$E,4,0)="","",VLOOKUP(A39,Kvartal!$A:$E,4,0))) ->  | I39: =IF(MONTH(Forside!$D$12)=12,IF(VLOOKUP(A39,Årlig!$A:$E,5,0)="","",VLOOKUP(A39,Årlig!$A:$E,5,0)),IF(VLOOKUP(A39,Kvartal!$A:$E,5,0)="","",VLOOKUP(A39,Kvartal!$A:$E,5,0))) -> 
A40: ccr_26 | B40: 13. | D40: Steg 3 - Individuelle nedskrivninger | G40: 0310 | H40: =IF(MONTH(Forside!$D$12)=12,IF(VLOOKUP(A40,Årlig!$A:$E,4,0)="","",VLOOKUP(A40,Årlig!$A:$E,4,0)),IF(VLOOKUP(A40,Kvartal!$A:$E,4,0)="","",VLOOKUP(A40,Kvartal!$A:$E,4,0))) ->  | I40: =IF(MONTH(Forside!$D$12)=12,IF(VLOOKUP(A40,Årlig!$A:$E,5,0)="","",VLOOKUP(A40,Årlig!$A:$E,5,0)),IF(VLOOKUP(A40,Kvartal!$A:$E,5,0)="","",VLOOKUP(A40,Kvartal!$A:$E,5,0))) -> 
A41: ccr_33 | B41: 15. | C41: Salg av porteføljer til annet foretak | D41: Brutto utlån solgt | G41: 0320 | H41: =IF(MONTH(Forside!$D$12)=12,IF(VLOOKUP(A41,Årlig!$A:$E,4,0)="","",VLOOKUP(A41,Årlig!$A:$E,4,0)),IF(VLOOKUP(A41,Kvartal!$A:$E,4,0)="","",VLOOKUP(A41,Kvartal!$A:$E,4,0))) ->  | I41: =IF(MONTH(Forside!$D$12)=12,IF(VLOOKUP(A41,Årlig!$A:$E,5,0)="","",VLOOKUP(A41,Årlig!$A:$E,5,0)),IF(VLOOKUP(A41,Kvartal!$A:$E,5,0)="","",VLOOKUP(A41,Kvartal!$A:$E,5,0))) -> 
A42: ccr_34 | B42: 15.1 | D42: Brutto utlån solgt | E42: Herav Norge | G42: 0330 | H42: =IF(MONTH(Forside!$D$12)=12,IF(VLOOKUP(A42,Årlig!$A:$E,4,0)="","",VLOOKUP(A42,Årlig!$A:$E,4,0)),IF(VLOOKUP(A42,Kvartal!$A:$E,4,0)="","",VLOOKUP(A42,Kvartal!$A:$E,4,0))) ->  | I42: =IF(MONTH(Forside!$D$12)=12,IF(VLOOKUP(A42,Årlig!$A:$E,5,0)="","",VLOOKUP(A42,Årlig!$A:$E,5,0)),IF(VLOOKUP(A42,Kvartal!$A:$E,5,0)="","",VLOOKUP(A42,Kvartal!$A:$E,5,0))) -> 
A43: ccr_35 | B43: 15.2 | D43: Resultateffekt | E43: Tilbakeførte tap | G43: 0340 | H43: =IF(MONTH(Forside!$D$12)=12,IF(VLOOKUP(A43,Årlig!$A:$E,4,0)="","",VLOOKUP(A43,Årlig!$A:$E,4,0)),IF(VLOOKUP(A43,Kvartal!$A:$E,4,0)="","",VLOOKUP(A43,Kvartal!$A:$E,4,0))) ->  | I43: =IF(MONTH(Forside!$D$12)=12,IF(VLOOKUP(A43,Årlig!$A:$E,5,0)="","",VLOOKUP(A43,Årlig!$A:$E,5,0)),IF(VLOOKUP(A43,Kvartal!$A:$E,5,0)="","",VLOOKUP(A43,Kvartal!$A:$E,5,0))) -> 
A44: ccr_36 | B44: 15.3 | E44: Annen resultateffekt | G44: 0350 | H44: =IF(MONTH(Forside!$D$12)=12,IF(VLOOKUP(A44,Årlig!$A:$E,4,0)="","",VLOOKUP(A44,Årlig!$A:$E,4,0)),IF(VLOOKUP(A44,Kvartal!$A:$E,4,0)="","",VLOOKUP(A44,Kvartal!$A:$E,4,0))) ->  | I44: =IF(MONTH(Forside!$D$12)=12,IF(VLOOKUP(A44,Årlig!$A:$E,5,0)="","",VLOOKUP(A44,Årlig!$A:$E,5,0)),IF(VLOOKUP(A44,Kvartal!$A:$E,5,0)="","",VLOOKUP(A44,Kvartal!$A:$E,5,0))) -> 
A45: ccr_37 | B45: 15.4 | D45: Brutto mislighold pr. 90 dager i solgt portefølje | G45: 0360 | H45: =IF(MONTH(Forside!$D$12)=12,IF(VLOOKUP(A45,Årlig!$A:$E,4,0)="","",VLOOKUP(A45,Årlig!$A:$E,4,0)),IF(VLOOKUP(A45,Kvartal!$A:$E,4,0)="","",VLOOKUP(A45,Kvartal!$A:$E,4,0))) ->  | I45: =IF(MONTH(Forside!$D$12)=12,IF(VLOOKUP(A45,Årlig!$A:$E,5,0)="","",VLOOKUP(A45,Årlig!$A:$E,5,0)),IF(VLOOKUP(A45,Kvartal!$A:$E,5,0)="","",VLOOKUP(A45,Kvartal!$A:$E,5,0))) -> 
C46: 1) Jf. veiledningen til ORBOF-rapport 12, kapittel 17, og kapitalkravsforskriften §10-1

Sheet nfl_02 (hidden)
G1: nfl_02. Fordeling av post 15 (Brutto utlån solgt) pr. foretak
G6: Foretak som portefølje er solgt til | I6: Brutto utlån solgt
I7: Beløp (mill.kr) hittil i år
G8: Organisasjonsnummer* | H8: Foretaksnavn (fullstendig) | I8: =nfl_01!H8 -> pr. 31.03.2025 | J8: =nfl_01!I8 -> pr. 31.03.2024
G9: 0010 | H9: 0020 | I9: 0030 | J9: 0040
G10: =+IF('Fordeling av post 15'!B8="","",'Fordeling av post 15'!B8) ->  | H10: =+IF('Fordeling av post 15'!C8="","",'Fordeling av post 15'!C8) ->  | I10: =+IF('Fordeling av post 15'!D8="","",'Fordeling av post 15'!D8) ->  | J10: =+IF('Fordeling av post 15'!E8="","",'Fordeling av post 15'!E8) -> 
G11: =+IF('Fordeling av post 15'!B9="","",'Fordeling av post 15'!B9) ->  | H11: =+IF('Fordeling av post 15'!C9="","",'Fordeling av post 15'!C9) ->  | I11: =+IF('Fordeling av post 15'!D9="","",'Fordeling av post 15'!D9) ->  | J11: =+IF('Fordeling av post 15'!E9="","",'Fordeling av post 15'!E9) -> 
G12: =+IF('Fordeling av post 15'!B10="","",'Fordeling av post 15'!B10) ->  | H12: =+IF('Fordeling av post 15'!C10="","",'Fordeling av post 15'!C10) ->  | I12: =+IF('Fordeling av post 15'!D10="","",'Fordeling av post 15'!D10) ->  | J12: =+IF('Fordeling av post 15'!E10="","",'Fordeling av post 15'!E10) -> 
G13: =+IF('Fordeling av post 15'!B11="","",'Fordeling av post 15'!B11) ->  | H13: =+IF('Fordeling av post 15'!C11="","",'Fordeling av post 15'!C11) ->  | I13: =+IF('Fordeling av post 15'!D11="","",'Fordeling av post 15'!D11) ->  | J13: =+IF('Fordeling av post 15'!E11="","",'Fordeling av post 15'!E11) -> 
G14: =+IF('Fordeling av post 15'!B12="","",'Fordeling av post 15'!B12) ->  | H14: =+IF('Fordeling av post 15'!C12="","",'Fordeling av post 15'!C12) ->  | I14: =+IF('Fordeling av post 15'!D12="","",'Fordeling av post 15'!D12) ->  | J14: =+IF('Fordeling av post 15'!E12="","",'Fordeling av post 15'!E12) -> 
G15: =+IF('Fordeling av post 15'!B13="","",'Fordeling av post 15'!B13) ->  | H15: =+IF('Fordeling av post 15'!C13="","",'Fordeling av post 15'!C13) ->  | I15: =+IF('Fordeling av post 15'!D13="","",'Fordeling av post 15'!D13) ->  | J15: =+IF('Fordeling av post 15'!E13="","",'Fordeling av post 15'!E13) -> 
G16: =+IF('Fordeling av post 15'!B14="","",'Fordeling av post 15'!B14) ->  | H16: =+IF('Fordeling av post 15'!C14="","",'Fordeling av post 15'!C14) ->  | I16: =+IF('Fordeling av post 15'!D14="","",'Fordeling av post 15'!D14) ->  | J16: =+IF('Fordeling av post 15'!E14="","",'Fordeling av post 15'!E14) -> 
G17: =+IF('Fordeling av post 15'!B15="","",'Fordeling av post 15'!B15) ->  | H17: =+IF('Fordeling av post 15'!C15="","",'Fordeling av post 15'!C15) ->  | I17: =+IF('Fordeling av post 15'!D15="","",'Fordeling av post 15'!D15) ->  | J17: =+IF('Fordeling av post 15'!E15="","",'Fordeling av post 15'!E15) -> 
G18: =+IF('Fordeling av post 15'!B16="","",'Fordeling av post 15'!B16) ->  | H18: =+IF('Fordeling av post 15'!C16="","",'Fordeling av post 15'!C16) ->  | I18: =+IF('Fordeling av post 15'!D16="","",'Fordeling av post 15'!D16) ->  | J18: =+IF('Fordeling av post 15'!E16="","",'Fordeling av post 15'!E16) -> 
G19: =+IF('Fordeling av post 15'!B17="","",'Fordeling av post 15'!B17) ->  | H19: =+IF('Fordeling av post 15'!C17="","",'Fordeling av post 15'!C17) ->  | I19: =+IF('Fordeling av post 15'!D17="","",'Fordeling av post 15'!D17) ->  | J19: =+IF('Fordeling av post 15'!E17="","",'Fordeling av post 15'!E17) -> 
G20: =+IF('Fordeling av post 15'!B18="","",'Fordeling av post 15'!B18) ->  | H20: =+IF('Fordeling av post 15'!C18="","",'Fordeling av post 15'!C18) ->  | I20: =+IF('Fordeling av post 15'!D18="","",'Fordeling av post 15'!D18) ->  | J20: =+IF('Fordeling av post 15'!E18="","",'Fordeling av post 15'!E18) -> 
G21: =+IF('Fordeling av post 15'!B19="","",'Fordeling av post 15'!B19) ->  | H21: =+IF('Fordeling av post 15'!C19="","",'Fordeling av post 15'!C19) ->  | I21: =+IF('Fordeling av post 15'!D19="","",'Fordeling av post 15'!D19) ->  | J21: =+IF('Fordeling av post 15'!E19="","",'Fordeling av post 15'!E19) -> 
G22: =+IF('Fordeling av post 15'!B20="","",'Fordeling av post 15'!B20) ->  | H22: =+IF('Fordeling av post 15'!C20="","",'Fordeling av post 15'!C20) ->  | I22: =+IF('Fordeling av post 15'!D20="","",'Fordeling av post 15'!D20) ->  | J22: =+IF('Fordeling av post 15'!E20="","",'Fordeling av post 15'!E20) -> 
G23: =+IF('Fordeling av post 15'!B21="","",'Fordeling av post 15'!B21) ->  | H23: =+IF('Fordeling av post 15'!C21="","",'Fordeling av post 15'!C21) ->  | I23: =+IF('Fordeling av post 15'!D21="","",'Fordeling av post 15'!D21) ->  | J23: =+IF('Fordeling av post 15'!E21="","",'Fordeling av post 15'!E21) -> 
G24: =+IF('Fordeling av post 15'!B22="","",'Fordeling av post 15'!B22) ->  | H24: =+IF('Fordeling av post 15'!C22="","",'Fordeling av post 15'!C22) ->  | I24: =+IF('Fordeling av post 15'!D22="","",'Fordeling av post 15'!D22) ->  | J24: =+IF('Fordeling av post 15'!E22="","",'Fordeling av post 15'!E22) -> 
G25: =+IF('Fordeling av post 15'!B23="","",'Fordeling av post 15'!B23) ->  | H25: =+IF('Fordeling av post 15'!C23="","",'Fordeling av post 15'!C23) ->  | I25: =+IF('Fordeling av post 15'!D23="","",'Fordeling av post 15'!D23) ->  | J25: =+IF('Fordeling av post 15'!E23="","",'Fordeling av post 15'!E23) -> 
G26: =+IF('Fordeling av post 15'!B24="","",'Fordeling av post 15'!B24) ->  | H26: =+IF('Fordeling av post 15'!C24="","",'Fordeling av post 15'!C24) ->  | I26: =+IF('Fordeling av post 15'!D24="","",'Fordeling av post 15'!D24) ->  | J26: =+IF('Fordeling av post 15'!E24="","",'Fordeling av post 15'!E24) -> 
G27: =+IF('Fordeling av post 15'!B25="","",'Fordeling av post 15'!B25) ->  | H27: =+IF('Fordeling av post 15'!C25="","",'Fordeling av post 15'!C25) ->  | I27: =+IF('Fordeling av post 15'!D25="","",'Fordeling av post 15'!D25) ->  | J27: =+IF('Fordeling av post 15'!E25="","",'Fordeling av post 15'!E25) -> 
G28: =+IF('Fordeling av post 15'!B26="","",'Fordeling av post 15'!B26) ->  | H28: =+IF('Fordeling av post 15'!C26="","",'Fordeling av post 15'!C26) ->  | I28: =+IF('Fordeling av post 15'!D26="","",'Fordeling av post 15'!D26) ->  | J28: =+IF('Fordeling av post 15'!E26="","",'Fordeling av post 15'!E26) -> 
G29: =+IF('Fordeling av post 15'!B27="","",'Fordeling av post 15'!B27) ->  | H29: =+IF('Fordeling av post 15'!C27="","",'Fordeling av post 15'!C27) ->  | I29: =+IF('Fordeling av post 15'!D27="","",'Fordeling av post 15'!D27) ->  | J29: =+IF('Fordeling av post 15'!E27="","",'Fordeling av post 15'!E27) -> 
G30: =+IF('Fordeling av post 15'!B28="","",'Fordeling av post 15'!B28) ->  | H30: =+IF('Fordeling av post 15'!C28="","",'Fordeling av post 15'!C28) ->  | I30: =+IF('Fordeling av post 15'!D28="","",'Fordeling av post 15'!D28) ->  | J30: =+IF('Fordeling av post 15'!E28="","",'Fordeling av post 15'!E28) -> 
G31: =+IF('Fordeling av post 15'!B29="","",'Fordeling av post 15'!B29) ->  | H31: =+IF('Fordeling av post 15'!C29="","",'Fordeling av post 15'!C29) ->  | I31: =+IF('Fordeling av post 15'!D29="","",'Fordeling av post 15'!D29) ->  | J31: =+IF('Fordeling av post 15'!E29="","",'Fordeling av post 15'!E29) -> 
G32: =+IF('Fordeling av post 15'!B30="","",'Fordeling av post 15'!B30) ->  | H32: =+IF('Fordeling av post 15'!C30="","",'Fordeling av post 15'!C30) ->  | I32: =+IF('Fordeling av post 15'!D30="","",'Fordeling av post 15'!D30) ->  | J32: =+IF('Fordeling av post 15'!E30="","",'Fordeling av post 15'!E30) -> 
G33: =+IF('Fordeling av post 15'!B31="","",'Fordeling av post 15'!B31) ->  | H33: =+IF('Fordeling av post 15'!C31="","",'Fordeling av post 15'!C31) ->  | I33: =+IF('Fordeling av post 15'!D31="","",'Fordeling av post 15'!D31) ->  | J33: =+IF('Fordeling av post 15'!E31="","",'Fordeling av post 15'!E31) -> 
G34: =+IF('Fordeling av post 15'!B32="","",'Fordeling av post 15'!B32) ->  | H34: =+IF('Fordeling av post 15'!C32="","",'Fordeling av post 15'!C32) ->  | I34: =+IF('Fordeling av post 15'!D32="","",'Fordeling av post 15'!D32) ->  | J34: =+IF('Fordeling av post 15'!E32="","",'Fordeling av post 15'!E32) -> 
G35: =+IF('Fordeling av post 15'!B33="","",'Fordeling av post 15'!B33) ->  | H35: =+IF('Fordeling av post 15'!C33="","",'Fordeling av post 15'!C33) ->  | I35: =+IF('Fordeling av post 15'!D33="","",'Fordeling av post 15'!D33) ->  | J35: =+IF('Fordeling av post 15'!E33="","",'Fordeling av post 15'!E33) -> 
G36: =+IF('Fordeling av post 15'!B34="","",'Fordeling av post 15'!B34) ->  | H36: =+IF('Fordeling av post 15'!C34="","",'Fordeling av post 15'!C34) ->  | I36: =+IF('Fordeling av post 15'!D34="","",'Fordeling av post 15'!D34) ->  | J36: =+IF('Fordeling av post 15'!E34="","",'Fordeling av post 15'!E34) -> 
G37: =+IF('Fordeling av post 15'!B35="","",'Fordeling av post 15'!B35) ->  | H37: =+IF('Fordeling av post 15'!C35="","",'Fordeling av post 15'!C35) ->  | I37: =+IF('Fordeling av post 15'!D35="","",'Fordeling av post 15'!D35) ->  | J37: =+IF('Fordeling av post 15'!E35="","",'Fordeling av post 15'!E35) -> 
G38: =+IF('Fordeling av post 15'!B36="","",'Fordeling av post 15'!B36) ->  | H38: =+IF('Fordeling av post 15'!C36="","",'Fordeling av post 15'!C36) ->  | I38: =+IF('Fordeling av post 15'!D36="","",'Fordeling av post 15'!D36) ->  | J38: =+IF('Fordeling av post 15'!E36="","",'Fordeling av post 15'!E36) -> 
G39: =+IF('Fordeling av post 15'!B37="","",'Fordeling av post 15'!B37) ->  | H39: =+IF('Fordeling av post 15'!C37="","",'Fordeling av post 15'!C37) ->  | I39: =+IF('Fordeling av post 15'!D37="","",'Fordeling av post 15'!D37) ->  | J39: =+IF('Fordeling av post 15'!E37="","",'Fordeling av post 15'!E37) -> 
G40: =+IF('Fordeling av post 15'!B38="","",'Fordeling av post 15'!B38) ->  | H40: =+IF('Fordeling av post 15'!C38="","",'Fordeling av post 15'!C38) ->  | I40: =+IF('Fordeling av post 15'!D38="","",'Fordeling av post 15'!D38) ->  | J40: =+IF('Fordeling av post 15'!E38="","",'Fordeling av post 15'!E38) -> 
G41: =+IF('Fordeling av post 15'!B39="","",'Fordeling av post 15'!B39) ->  | H41: =+IF('Fordeling av post 15'!C39="","",'Fordeling av post 15'!C39) ->  | I41: =+IF('Fordeling av post 15'!D39="","",'Fordeling av post 15'!D39) ->  | J41: =+IF('Fordeling av post 15'!E39="","",'Fordeling av post 15'!E39) -> 
G42: =+IF('Fordeling av post 15'!B40="","",'Fordeling av post 15'!B40) ->  | H42: =+IF('Fordeling av post 15'!C40="","",'Fordeling av post 15'!C40) ->  | I42: =+IF('Fordeling av post 15'!D40="","",'Fordeling av post 15'!D40) ->  | J42: =+IF('Fordeling av post 15'!E40="","",'Fordeling av post 15'!E40) -> 
G43: =+IF('Fordeling av post 15'!B41="","",'Fordeling av post 15'!B41) ->  | H43: =+IF('Fordeling av post 15'!C41="","",'Fordeling av post 15'!C41) ->  | I43: =+IF('Fordeling av post 15'!D41="","",'Fordeling av post 15'!D41) ->  | J43: =+IF('Fordeling av post 15'!E41="","",'Fordeling av post 15'!E41) -> 
G44: =+IF('Fordeling av post 15'!B42="","",'Fordeling av post 15'!B42) ->  | H44: =+IF('Fordeling av post 15'!C42="","",'Fordeling av post 15'!C42) ->  | I44: =+IF('Fordeling av post 15'!D42="","",'Fordeling av post 15'!D42) ->  | J44: =+IF('Fordeling av post 15'!E42="","",'Fordeling av post 15'!E42) -> 
G45: =+IF('Fordeling av post 15'!B43="","",'Fordeling av post 15'!B43) ->  | H45: =+IF('Fordeling av post 15'!C43="","",'Fordeling av post 15'!C43) ->  | I45: =+IF('Fordeling av post 15'!D43="","",'Fordeling av post 15'!D43) ->  | J45: =+IF('Fordeling av post 15'!E43="","",'Fordeling av post 15'!E43) -> 
G46: =+IF('Fordeling av post 15'!B44="","",'Fordeling av post 15'!B44) ->  | H46: =+IF('Fordeling av post 15'!C44="","",'Fordeling av post 15'!C44) ->  | I46: =+IF('Fordeling av post 15'!D44="","",'Fordeling av post 15'!D44) ->  | J46: =+IF('Fordeling av post 15'!E44="","",'Fordeling av post 15'!E44) -> 
G47: =+IF('Fordeling av post 15'!B45="","",'Fordeling av post 15'!B45) ->  | H47: =+IF('Fordeling av post 15'!C45="","",'Fordeling av post 15'!C45) ->  | I47: =+IF('Fordeling av post 15'!D45="","",'Fordeling av post 15'!D45) ->  | J47: =+IF('Fordeling av post 15'!E45="","",'Fordeling av post 15'!E45) -> 
G48: =+IF('Fordeling av post 15'!B46="","",'Fordeling av post 15'!B46) ->  | H48: =+IF('Fordeling av post 15'!C46="","",'Fordeling av post 15'!C46) ->  | I48: =+IF('Fordeling av post 15'!D46="","",'Fordeling av post 15'!D46) ->  | J48: =+IF('Fordeling av post 15'!E46="","",'Fordeling av post 15'!E46) -> 
G49: =+IF('Fordeling av post 15'!B47="","",'Fordeling av post 15'!B47) ->  | H49: =+IF('Fordeling av post 15'!C47="","",'Fordeling av post 15'!C47) ->  | I49: =+IF('Fordeling av post 15'!D47="","",'Fordeling av post 15'!D47) ->  | J49: =+IF('Fordeling av post 15'!E47="","",'Fordeling av post 15'!E47) -> 
G50: =+IF('Fordeling av post 15'!B48="","",'Fordeling av post 15'!B48) ->  | H50: =+IF('Fordeling av post 15'!C48="","",'Fordeling av post 15'!C48) ->  | I50: =+IF('Fordeling av post 15'!D48="","",'Fordeling av post 15'!D48) ->  | J50: =+IF('Fordeling av post 15'!E48="","",'Fordeling av post 15'!E48) -> 

Sheet nfl_03 (hidden)
D1: nfl_03. Brutto utlån og misligholdte engasjementer - Norge, fordelt på låntakers alder
D7: =IF([1]Forside!G12="4. kvartal","","SKAL IKKE RAPPORTERES FOR DENNE PERIODEN") -> SKAL IKKE RAPPORTERES FOR DENNE PERIODEN | H7: Beløp (mill.kr)
H8: =nfl_01!H8 -> pr. 31.03.2025 | I8: =nfl_01!I8 -> pr. 31.03.2024
G9: Code | H9: 0010 | I9: 0020
B10: ccr_12 | C10: 7.3 | D10: Brutto utlån kunder - Norge | E10: Kredittkort | G10: 0010 | H10: =IF(VLOOKUP(B10,Årlig!$A:$E,4,0)="","",VLOOKUP(B10,Årlig!$A:$E,4,0)) ->  | I10: =IF(VLOOKUP(B10,Årlig!$A:$E,5,0)="","",VLOOKUP(B10,Årlig!$A:$E,5,0)) -> 
B11: ccr_44 | C11: 18.1 | E11: Kredittkort | F11: 18-29 år | G11: 0020 | H11: =IF(VLOOKUP(B11,Årlig!$A:$E,4,0)="","",VLOOKUP(B11,Årlig!$A:$E,4,0)) ->  | I11: =IF(VLOOKUP(B11,Årlig!$A:$E,5,0)="","",VLOOKUP(B11,Årlig!$A:$E,5,0)) -> 
B12: ccr_45 | C12: 18.2 | F12: 30-39 år | G12: 0030 | H12: =IF(VLOOKUP(B12,Årlig!$A:$E,4,0)="","",VLOOKUP(B12,Årlig!$A:$E,4,0)) ->  | I12: =IF(VLOOKUP(B12,Årlig!$A:$E,5,0)="","",VLOOKUP(B12,Årlig!$A:$E,5,0)) -> 
B13: ccr_46 | C13: 18.3 | F13: 40-49 år | G13: 0040 | H13: =IF(VLOOKUP(B13,Årlig!$A:$E,4,0)="","",VLOOKUP(B13,Årlig!$A:$E,4,0)) ->  | I13: =IF(VLOOKUP(B13,Årlig!$A:$E,5,0)="","",VLOOKUP(B13,Årlig!$A:$E,5,0)) -> 
B14: ccr_47 | C14: 18.4 | F14: 50-59 år | G14: 0050 | H14: =IF(VLOOKUP(B14,Årlig!$A:$E,4,0)="","",VLOOKUP(B14,Årlig!$A:$E,4,0)) ->  | I14: =IF(VLOOKUP(B14,Årlig!$A:$E,5,0)="","",VLOOKUP(B14,Årlig!$A:$E,5,0)) -> 
B15: ccr_48 | C15: 18.5 | F15: 60 år + | G15: 0060 | H15: =IF(VLOOKUP(B15,Årlig!$A:$E,4,0)="","",VLOOKUP(B15,Årlig!$A:$E,4,0)) ->  | I15: =IF(VLOOKUP(B15,Årlig!$A:$E,5,0)="","",VLOOKUP(B15,Årlig!$A:$E,5,0)) -> 
B16: ccr_15 | C16: 7.7 | E16: Andre forbrukslån | G16: 0070 | H16: =IF(VLOOKUP(B16,Årlig!$A:$E,4,0)="","",VLOOKUP(B16,Årlig!$A:$E,4,0)) ->  | I16: =IF(VLOOKUP(B16,Årlig!$A:$E,5,0)="","",VLOOKUP(B16,Årlig!$A:$E,5,0)) -> 
B17: ccr_50 | C17: 18.1 | E17: Andre forbrukslån | F17: 18-29 år | G17: 0080 | H17: =IF(VLOOKUP(B17,Årlig!$A:$E,4,0)="","",VLOOKUP(B17,Årlig!$A:$E,4,0)) ->  | I17: =IF(VLOOKUP(B17,Årlig!$A:$E,5,0)="","",VLOOKUP(B17,Årlig!$A:$E,5,0)) -> 
B18: ccr_51 | C18: 18.2 | F18: 30-39 år | G18: 0090 | H18: =IF(VLOOKUP(B18,Årlig!$A:$E,4,0)="","",VLOOKUP(B18,Årlig!$A:$E,4,0)) ->  | I18: =IF(VLOOKUP(B18,Årlig!$A:$E,5,0)="","",VLOOKUP(B18,Årlig!$A:$E,5,0)) -> 
B19: ccr_52 | C19: 18.3 | F19: 40-49 år | G19: 0100 | H19: =IF(VLOOKUP(B19,Årlig!$A:$E,4,0)="","",VLOOKUP(B19,Årlig!$A:$E,4,0)) ->  | I19: =IF(VLOOKUP(B19,Årlig!$A:$E,5,0)="","",VLOOKUP(B19,Årlig!$A:$E,5,0)) -> 
B20: ccr_53 | C20: 18.4 | F20: 50-59 år | G20: 0110 | H20: =IF(VLOOKUP(B20,Årlig!$A:$E,4,0)="","",VLOOKUP(B20,Årlig!$A:$E,4,0)) ->  | I20: =IF(VLOOKUP(B20,Årlig!$A:$E,5,0)="","",VLOOKUP(B20,Årlig!$A:$E,5,0)) -> 
B21: ccr_54 | C21: 18.5 | F21: 60 år + | G21: 0120 | H21: =IF(VLOOKUP(B21,Årlig!$A:$E,4,0)="","",VLOOKUP(B21,Årlig!$A:$E,4,0)) ->  | I21: =IF(VLOOKUP(B21,Årlig!$A:$E,5,0)="","",VLOOKUP(B21,Årlig!$A:$E,5,0)) -> 
B22: ccr_19 | C22: 8.3 | D22: Brutto misligholdte engasjementer, 90 dager 1) - Norge | E22: Kredittkort | G22: 0130 | H22: =IF(VLOOKUP(B22,Årlig!$A:$E,4,0)="","",VLOOKUP(B22,Årlig!$A:$E,4,0)) ->  | I22: =IF(VLOOKUP(B22,Årlig!$A:$E,5,0)="","",VLOOKUP(B22,Årlig!$A:$E,5,0)) -> 
B23: ccr_56 | C23: 19.1 | E23: Kredittkort | F23: 18-29 år | G23: 0140 | H23: =IF(VLOOKUP(B23,Årlig!$A:$E,4,0)="","",VLOOKUP(B23,Årlig!$A:$E,4,0)) ->  | I23: =IF(VLOOKUP(B23,Årlig!$A:$E,5,0)="","",VLOOKUP(B23,Årlig!$A:$E,5,0)) -> 
B24: ccr_57 | C24: 19.2 | F24: 30-39 år | G24: 0150 | H24: =IF(VLOOKUP(B24,Årlig!$A:$E,4,0)="","",VLOOKUP(B24,Årlig!$A:$E,4,0)) ->  | I24: =IF(VLOOKUP(B24,Årlig!$A:$E,5,0)="","",VLOOKUP(B24,Årlig!$A:$E,5,0)) -> 
B25: ccr_58 | C25: 19.3 | F25: 40-49 år | G25: 0160 | H25: =IF(VLOOKUP(B25,Årlig!$A:$E,4,0)="","",VLOOKUP(B25,Årlig!$A:$E,4,0)) ->  | I25: =IF(VLOOKUP(B25,Årlig!$A:$E,5,0)="","",VLOOKUP(B25,Årlig!$A:$E,5,0)) -> 
B26: ccr_59 | C26: 19.4 | F26: 50-59 år | G26: 0170 | H26: =IF(VLOOKUP(B26,Årlig!$A:$E,4,0)="","",VLOOKUP(B26,Årlig!$A:$E,4,0)) ->  | I26: =IF(VLOOKUP(B26,Årlig!$A:$E,5,0)="","",VLOOKUP(B26,Årlig!$A:$E,5,0)) -> 
B27: ccr_60 | C27: 19.5 | F27: 60 år + | G27: 0180 | H27: =IF(VLOOKUP(B27,Årlig!$A:$E,4,0)="","",VLOOKUP(B27,Årlig!$A:$E,4,0)) ->  | I27: =IF(VLOOKUP(B27,Årlig!$A:$E,5,0)="","",VLOOKUP(B27,Årlig!$A:$E,5,0)) -> 
B28: ccr_21 | C28: 8.5 | E28: Andre forbrukslån | G28: 0190 | H28: =IF(VLOOKUP(B28,Årlig!$A:$E,4,0)="","",VLOOKUP(B28,Årlig!$A:$E,4,0)) ->  | I28: =IF(VLOOKUP(B28,Årlig!$A:$E,5,0)="","",VLOOKUP(B28,Årlig!$A:$E,5,0)) -> 
B29: ccr_62 | C29: 19.1 | E29: Andre forbrukslån | F29: 18-29 år | G29: 0200 | H29: =IF(VLOOKUP(B29,Årlig!$A:$E,4,0)="","",VLOOKUP(B29,Årlig!$A:$E,4,0)) ->  | I29: =IF(VLOOKUP(B29,Årlig!$A:$E,5,0)="","",VLOOKUP(B29,Årlig!$A:$E,5,0)) -> 
B30: ccr_63 | C30: 19.2 | F30: 30-39 år | G30: 0210 | H30: =IF(VLOOKUP(B30,Årlig!$A:$E,4,0)="","",VLOOKUP(B30,Årlig!$A:$E,4,0)) ->  | I30: =IF(VLOOKUP(B30,Årlig!$A:$E,5,0)="","",VLOOKUP(B30,Årlig!$A:$E,5,0)) -> 
B31: ccr_64 | C31: 19.3 | F31: 40-49 år | G31: 0220 | H31: =IF(VLOOKUP(B31,Årlig!$A:$E,4,0)="","",VLOOKUP(B31,Årlig!$A:$E,4,0)) ->  | I31: =IF(VLOOKUP(B31,Årlig!$A:$E,5,0)="","",VLOOKUP(B31,Årlig!$A:$E,5,0)) -> 
B32: ccr_65 | C32: 19.4 | F32: 50-59 år | G32: 0230 | H32: =IF(VLOOKUP(B32,Årlig!$A:$E,4,0)="","",VLOOKUP(B32,Årlig!$A:$E,4,0)) ->  | I32: =IF(VLOOKUP(B32,Årlig!$A:$E,5,0)="","",VLOOKUP(B32,Årlig!$A:$E,5,0)) -> 
B33: ccr_66 | C33: 19.5 | F33: 60 år + | G33: 0240 | H33: =IF(VLOOKUP(B33,Årlig!$A:$E,4,0)="","",VLOOKUP(B33,Årlig!$A:$E,4,0)) ->  | I33: =IF(VLOOKUP(B33,Årlig!$A:$E,5,0)="","",VLOOKUP(B33,Årlig!$A:$E,5,0)) -> 

Sheet nfl_04 (hidden)
E1: nfl_04. Lånesøknader (årlig)
E7: =IF([1]Forside!G12="4. kvartal","","SKAL IKKE RAPPORTERES FOR DENNE PERIODEN") -> SKAL IKKE RAPPORTERES FOR DENNE PERIODEN | H7: Antall
H8: =nfl_01!H8 -> pr. 31.03.2025 | I8: =nfl_01!I8 -> pr. 31.03.2024
G9: Code | H9: 0010 | I9: 0020
C10: ccr_38 | D10: 16. | E10: Lånesøknader til behandling | G10: 0010 | H10: =IF(VLOOKUP(C10,Årlig!$A:$E,4,0)="","",VLOOKUP(C10,Årlig!$A:$E,4,0)) ->  | I10: =IF(VLOOKUP(C10,Årlig!$A:$E,5,0)="","",VLOOKUP(C10,Årlig!$A:$E,5,0)) -> 
C11: ccr_39 | D11: 16.1 | E11: Lånesøknader til behandling | F11: kredittkort | G11: 0020 | H11: =IF(VLOOKUP(C11,Årlig!$A:$E,4,0)="","",VLOOKUP(C11,Årlig!$A:$E,4,0)) ->  | I11: =IF(VLOOKUP(C11,Årlig!$A:$E,5,0)="","",VLOOKUP(C11,Årlig!$A:$E,5,0)) -> 
C12: ccr_40 | D12: 16.2 | F12: andre forbrukslån | G12: 0030 | H12: =IF(VLOOKUP(C12,Årlig!$A:$E,4,0)="","",VLOOKUP(C12,Årlig!$A:$E,4,0)) ->  | I12: =IF(VLOOKUP(C12,Årlig!$A:$E,5,0)="","",VLOOKUP(C12,Årlig!$A:$E,5,0)) -> 
C13: ccr_41 | D13: 17. | E13: Avslåtte lånesøknader | G13: 0040 | H13: =IF(VLOOKUP(C13,Årlig!$A:$E,4,0)="","",VLOOKUP(C13,Årlig!$A:$E,4,0)) ->  | I13: =IF(VLOOKUP(C13,Årlig!$A:$E,5,0)="","",VLOOKUP(C13,Årlig!$A:$E,5,0)) -> 
C14: ccr_42 | D14: 17.1 | E14: Avslåtte lånesøknader | F14: kredittkort | G14: 0050 | H14: =IF(VLOOKUP(C14,Årlig!$A:$E,4,0)="","",VLOOKUP(C14,Årlig!$A:$E,4,0)) ->  | I14: =IF(VLOOKUP(C14,Årlig!$A:$E,5,0)="","",VLOOKUP(C14,Årlig!$A:$E,5,0)) -> 
C15: ccr_43 | D15: 17.2 | F15: andre forbrukslån | G15: 0060 | H15: =IF(VLOOKUP(C15,Årlig!$A:$E,4,0)="","",VLOOKUP(C15,Årlig!$A:$E,4,0)) ->  | I15: =IF(VLOOKUP(C15,Årlig!$A:$E,5,0)="","",VLOOKUP(C15,Årlig!$A:$E,5,0)) -> 

Sheet global (hidden)
A1: Name | B1: Key | C1: Value
A2: Excel versjonsnummer (mottaksløsning) | B2: dwh_excel_version | C2: =+Forside!$A$2 -> 293
A3: Workbook version | B3: workbook_version | C3: 1
A4: Workbook code | B4: workbook_code | C4: nfl
A5: KRT number | B5: krt_number | C5: =+Forside!$C$1 -> KRT-1133
A6: Identifier | B6: identifier | C6: =+Forside!$G$10 -> 0
A7: Reporting period | B7: reporting_period | C7: =+Forside!$D$12 -> 31.03.2025
A8: Consolidation level | B8: consolidaton_level | C8: Ikke konsolidert
